[Event "*** Titled Tuesday Blitz"]
[Site "Chess.com"]
[Date "2021.02.16"]
[Round "10"]
[White "AlexTriapishko"]
[Black "Skat2704"]
[Result "1-0"]
[WhiteElo "2826"]
[BlackElo "2554"]
[TimeControl "180+1"]
[EndTime "11:59:24 PST"]
[Termination "AlexTriapishko won by resignation"]

1. d4 {[%clk 0:03:00.9]} 1... d5 {[%clk 0:02:58.7]} 2. c4 {[%clk 0:03:00.6]}
2... e6 {[%clk 0:02:57.8]} 3. Nf3 {[%clk 0:03:00.3]} 3... Nf6 {[%clk 0:02:56.5]}
4. g3 {[%clk 0:02:59.6]} 4... dxc4 {[%clk 0:02:54.9]} 5. Bg2 {[%clk 0:02:58.7]}
5... Nc6 {[%clk 0:02:53.6]} 6. Qa4 {[%clk 0:02:53.1]} 6... Bb4+ {[%clk 0:02:51]}
7. Bd2 {[%clk 0:02:51.8]} 7... Nd5 {[%clk 0:02:49.6]} 8. Bxb4 {[%clk 0:02:18]}
8... Nxb4 {[%clk 0:02:47.9]} 9. O-O {[%clk 0:02:18.4]} 9... Rb8 {[%clk 0:02:42]}
10. Na3 {[%clk 0:01:39.1]} 10... a6 {[%clk 0:02:33.8]} 11. Ne5 {[%clk 0:01:36]}
11... O-O {[%clk 0:02:22.7]} 12. Nxc6 {[%clk 0:01:33.5]} 12... Nxc6 {[%clk
0:02:21.6]} 13. Qxc4 {[%clk 0:01:09.5]} 13... Qxd4 {[%clk 0:02:14.8]} 14. Bxc6
{[%clk 0:01:07.7]} 14... Qxc4 {[%clk 0:02:13.3]} 15. Nxc4 {[%clk 0:01:08.6]}
15... bxc6 {[%clk 0:02:12.1]} 16. b3 {[%clk 0:01:09.5]} 16... Rd8 {[%clk
0:02:03.7]} 17. Rac1 {[%clk 0:00:58.1]} 17... Bd7 {[%clk 0:02:00.1]} 18. Ne5
{[%clk 0:00:53]} 18... a5 {[%clk 0:01:50]} 19. Rc5 {[%clk 0:00:25.4]} 19... a4
{[%clk 0:01:46.1]} 20. bxa4 {[%clk 0:00:26.3]} 20... Ra8 {[%clk 0:01:42.7]} 21.
Rd1 {[%clk 0:00:22.8]} 21... Be8 {[%clk 0:01:31.7]} 22. Rxd8 {[%clk 0:00:22.8]}
22... Rxd8 {[%clk 0:01:30.6]} 23. Nxc6 {[%clk 0:00:23.1]} 23... Ra8 {[%clk
0:01:25.3]} 24. a5 {[%clk 0:00:21.2]} 24... Bxc6 {[%clk 0:01:21.7]} 25. Rxc6
{[%clk 0:00:22.1]} 25... Rxa5 {[%clk 0:01:19.9]} 26. Rxc7 {[%clk 0:00:22.3]}
26... g6 {[%clk 0:01:17]} 27. Rc2 {[%clk 0:00:22.6]} 27... h5 {[%clk 0:01:15.1]}
28. Kg2 {[%clk 0:00:23.2]} 28... Ra3 {[%clk 0:01:12.2]} 29. h4 {[%clk
0:00:23.3]} 29... Kg7 {[%clk 0:01:09.9]} 30. e3 {[%clk 0:00:23.9]} 30... Kf6
{[%clk 0:01:04.4]} 31. Kf3 {[%clk 0:00:24.3]} 31... Ke5 {[%clk 0:00:58.4]} 32.
Rd2 {[%clk 0:00:23.7]} 32... Ra4 {[%clk 0:00:52.7]} 33. Ke2 {[%clk 0:00:23.3]}
33... Ke4 {[%clk 0:00:49.1]} 34. Rd4+ {[%clk 0:00:10.3]} 34... Rxd4 {[%clk
0:00:44.5]} 35. exd4 {[%clk 0:00:11.2]} 35... Kxd4 {[%clk 0:00:42.9]} 36. a4
{[%clk 0:00:09.3]} 36... Kc4 {[%clk 0:00:37.4]} 37. Ke3 {[%clk 0:00:08.6]} 37...
Kb4 {[%clk 0:00:26]} 38. Kd4 {[%clk 0:00:09]} 38... f6 {[%clk 0:00:23.1]} 39. a5
{[%clk 0:00:08]} 39... Kxa5 {[%clk 0:00:21.7]} 40. Kc5 {[%clk 0:00:08.6]} 40...
e5 {[%clk 0:00:20.2]} 41. Kd5 {[%clk 0:00:07.5]} 41... Kb5 {[%clk 0:00:17.5]}
42. Ke6 {[%clk 0:00:07.7]} 1-0

[Event "*** Titled Tuesday Blitz"]
[Site "Chess.com"]
[Date "2021.02.16"]
[Round "10"]
[White "Problematique_99"]
[Black "Vugar_Manafov"]
[Result "0-1"]
[WhiteElo "2473"]
[BlackElo "2665"]
[TimeControl "180+1"]
[EndTime "11:59:24 PST"]
[Termination "Vugar_Manafov won by resignation"]

1. e4 {[%clk 0:02:58.3]} 1... Nf6 {[%clk 0:02:59.6]} 2. Nc3 {[%clk 0:02:57.8]}
2... d5 {[%clk 0:02:58.9]} 3. exd5 {[%clk 0:02:58.7]} 3... Nxd5 {[%clk
0:02:59.8]} 4. Qf3 {[%clk 0:02:59.3]} 4... c6 {[%clk 0:03:00.1]} 5. Bc4 {[%clk
0:02:59]} 5... e6 {[%clk 0:03:00.2]} 6. Nge2 {[%clk 0:02:58]} 6... Nd7 {[%clk
0:03:00.7]} 7. d4 {[%clk 0:02:57.7]} 7... Be7 {[%clk 0:03:00.9]} 8. O-O {[%clk
0:02:55.5]} 8... O-O {[%clk 0:03:01.4]} 9. Ne4 {[%clk 0:02:53.4]} 9... N7f6
{[%clk 0:03:00.5]} 10. c3 {[%clk 0:02:51.6]} 10... a5 {[%clk 0:02:54]} 11. a4
{[%clk 0:02:50.7]} 11... b6 {[%clk 0:02:53.7]} 12. Nxf6+ {[%clk 0:02:45.5]}
12... Bxf6 {[%clk 0:02:54.6]} 13. Ng3 {[%clk 0:02:44.6]} 13... Ba6 {[%clk
0:02:54.3]} 14. Bxa6 {[%clk 0:02:43.9]} 14... Rxa6 {[%clk 0:02:55.2]} 15. Ne4
{[%clk 0:02:41.9]} 15... Ra8 {[%clk 0:02:45.5]} 16. Bf4 {[%clk 0:02:38.8]} 16...
Nxf4 {[%clk 0:02:42]} 17. Qxf4 {[%clk 0:02:39.7]} 17... Be7 {[%clk 0:02:37.1]}
18. Rfe1 {[%clk 0:02:38.3]} 18... Qd5 {[%clk 0:02:36.4]} 19. Qc7 {[%clk
0:02:27.7]} 19... Bd8 {[%clk 0:02:34.8]} 20. Qe5 {[%clk 0:02:20.1]} 20... Be7
{[%clk 0:02:29.3]} 21. Qc7 {[%clk 0:02:19.5]} 21... Bd8 {[%clk 0:02:29.5]} 22.
Qe5 {[%clk 0:02:11.9]} 22... Ra7 {[%clk 0:02:28.2]} 23. Nd2 {[%clk 0:01:55.8]}
23... Bf6 {[%clk 0:02:26]} 24. Qe2 {[%clk 0:01:51.9]} 24... b5 {[%clk 0:02:21]}
25. Ne4 {[%clk 0:01:42]} 25... Be7 {[%clk 0:02:20]} 26. Qd3 {[%clk 0:01:30.5]}
26... Rd8 {[%clk 0:02:16.2]} 27. Re3 {[%clk 0:01:28.1]} 27... b4 {[%clk
0:02:10.7]} 28. Rh3 {[%clk 0:01:25.7]} 28... h6 {[%clk 0:02:07.7]} 29. Rg3
{[%clk 0:01:21.7]} 29... Kh8 {[%clk 0:01:58.4]} 30. Rf3 {[%clk 0:01:17.1]} 30...
Bf8 {[%clk 0:01:51.4]} 31. Rd1 {[%clk 0:01:14.7]} 31... bxc3 {[%clk 0:01:47.8]}
32. bxc3 {[%clk 0:01:09.8]} 32... Qb3 {[%clk 0:01:47.8]} 33. g4 {[%clk
0:00:52.9]} 33... Rd5 {[%clk 0:01:42.5]} 34. c4 {[%clk 0:00:43.5]} 34... Qxd3
{[%clk 0:01:39.8]} 35. Rfxd3 {[%clk 0:00:43.7]} 35... Rd8 {[%clk 0:01:37.9]} 36.
d5 {[%clk 0:00:39.6]} 36... cxd5 {[%clk 0:01:31.3]} 37. cxd5 {[%clk 0:00:40.5]}
37... Rad7 {[%clk 0:01:31.8]} 38. d6 {[%clk 0:00:39.6]} 38... f5 {[%clk
0:01:32]} 39. Nc5 {[%clk 0:00:28.2]} 39... Rxd6 {[%clk 0:01:30.5]} 40. Rxd6
{[%clk 0:00:28.2]} 40... Rxd6 {[%clk 0:01:30.3]} 41. Rxd6 {[%clk 0:00:28.2]}
41... Bxd6 {[%clk 0:01:31.2]} 42. Nxe6 {[%clk 0:00:25.9]} 42... fxg4 {[%clk
0:01:31.1]} 43. Nd4 {[%clk 0:00:23]} 43... Kh7 {[%clk 0:01:30.3]} 44. Nf5 {[%clk
0:00:20.3]} 44... Bc7 {[%clk 0:01:29.6]} 45. Kg2 {[%clk 0:00:20.7]} 45... Kg6
{[%clk 0:01:28.5]} 46. Ne7+ {[%clk 0:00:21]} 46... Kg5 {[%clk 0:01:29]} 47. Nd5
{[%clk 0:00:20.9]} 47... Be5 {[%clk 0:01:27.5]} 48. h3 {[%clk 0:00:19.5]} 48...
gxh3+ {[%clk 0:01:27.3]} 49. Kxh3 {[%clk 0:00:20.4]} 49... Kf5 {[%clk
0:01:27.3]} 50. Kg2 {[%clk 0:00:19.2]} 50... Ke4 {[%clk 0:01:24.8]} 51. Nb6
{[%clk 0:00:17.6]} 51... Bc7 {[%clk 0:01:20.6]} 52. Nc4 {[%clk 0:00:16.5]} 52...
Kd4 {[%clk 0:01:20.5]} 53. Ne3 {[%clk 0:00:16.9]} 53... Ke4 {[%clk 0:01:15.3]}
54. Nc4 {[%clk 0:00:12.5]} 54... h5 {[%clk 0:01:15.2]} 55. Kh3 {[%clk 0:00:12]}
55... g5 {[%clk 0:01:13.6]} 56. Kg2 {[%clk 0:00:12.2]} 56... g4 {[%clk
0:01:12.1]} 57. Nd2+ {[%clk 0:00:10.4]} 57... Kd3 {[%clk 0:01:11.4]} 58. Nb3
{[%clk 0:00:10.5]} 58... Bb6 {[%clk 0:01:11.1]} 59. f3 {[%clk 0:00:09.5]} 59...
gxf3+ {[%clk 0:01:10.9]} 60. Kxf3 {[%clk 0:00:10.4]} 60... Kc2 {[%clk
0:01:11.4]} 0-1

[Event "*** Titled Tuesday Blitz"]
[Site "Chess.com"]
[Date "2021.02.16"]
[Round "10"]
[White "catzapto"]
[Black "LamaChampetre"]
[Result "0-1"]
[WhiteElo "2095"]
[BlackElo "2198"]
[TimeControl "180+1"]
[EndTime "11:59:25 PST"]
[Termination "LamaChampetre won on time"]

1. e4 {[%clk 0:01:41.6]} 1... c5 {[%clk 0:02:58.2]} 2. Nf3 {[%clk 0:01:41.5]}
2... g6 {[%clk 0:02:58.4]} 3. c3 {[%clk 0:01:41.5]} 3... d5 {[%clk 0:02:58]} 4.
exd5 {[%clk 0:01:40.6]} 4... Qxd5 {[%clk 0:02:58.9]} 5. Na3 {[%clk 0:01:38.3]}
5... Bg7 {[%clk 0:02:58.6]} 6. d4 {[%clk 0:01:38.3]} 6... cxd4 {[%clk
0:02:55.8]} 7. Nb5 {[%clk 0:01:34.7]} 7... Na6 {[%clk 0:02:53.3]} 8. Nfxd4
{[%clk 0:01:27.6]} 8... Nf6 {[%clk 0:02:51.5]} 9. c4 {[%clk 0:01:06.6]} 9...
Qe4+ {[%clk 0:02:36.3]} 10. Qe2 {[%clk 0:01:06.1]} 10... O-O {[%clk 0:02:32.5]}
11. Bd2 {[%clk 0:00:56]} 11... Bd7 {[%clk 0:02:10.4]} 12. f3 {[%clk 0:00:21]}
12... Qxe2+ {[%clk 0:02:04.4]} 13. Bxe2 {[%clk 0:00:21.9]} 13... e5 {[%clk
0:02:04.2]} 14. Nb3 {[%clk 0:00:20.5]} 14... e4 {[%clk 0:02:02.6]} 15. Nc3
{[%clk 0:00:19.2]} 15... exf3 {[%clk 0:01:59.1]} 16. Bxf3 {[%clk 0:00:20.1]}
16... Rfe8+ {[%clk 0:01:59.1]} 17. Be2 {[%clk 0:00:19.9]} 17... Bg4 {[%clk
0:01:56.9]} 18. Nc1 {[%clk 0:00:19.3]} 18... Rad8 {[%clk 0:01:48]} 19. h3 {[%clk
0:00:19.1]} 19... Bxe2 {[%clk 0:01:46.6]} 20. N1xe2 {[%clk 0:00:20]} 20... Nb4
{[%clk 0:01:45.6]} 21. O-O-O {[%clk 0:00:18.6]} 21... Nd3+ {[%clk 0:01:29.7]}
22. Kc2 {[%clk 0:00:17]} 22... Ne4 {[%clk 0:01:27.1]} 23. Nxe4 {[%clk
0:00:13.9]} 23... Rxe4 {[%clk 0:01:26.5]} 24. Bc3 {[%clk 0:00:14.4]} 24... Rxe2+
{[%clk 0:01:25.7]} 25. Kb3 {[%clk 0:00:13.3]} 25... Ree8 {[%clk 0:01:13.6]} 26.
Kc2 {[%clk 0:00:11.2]} 26... Bxc3 {[%clk 0:01:07.8]} 27. bxc3 {[%clk 0:00:12.1]}
27... Nf2 {[%clk 0:01:07.6]} 28. Rxd8 {[%clk 0:00:10.7]} 28... Rxd8 {[%clk
0:01:08.5]} 29. Rb1 {[%clk 0:00:10.4]} 29... b6 {[%clk 0:01:06.4]} 30. a4 {[%clk
0:00:09.6]} 30... Ne4 {[%clk 0:01:03.9]} 31. a5 {[%clk 0:00:08.9]} 31... Rd2+
{[%clk 0:01:02.7]} 32. Kc1 {[%clk 0:00:08.7]} 32... Rxg2 {[%clk 0:01:00.9]} 33.
axb6 {[%clk 0:00:08.5]} 33... axb6 {[%clk 0:01:00.9]} 34. Rxb6 {[%clk
0:00:07.2]} 34... Nxc3 {[%clk 0:00:58.8]} 35. c5 {[%clk 0:00:07.8]} 35... Nd5
{[%clk 0:00:56.8]} 36. Rb8+ {[%clk 0:00:07.1]} 36... Kg7 {[%clk 0:00:56.4]} 37.
c6 {[%clk 0:00:07.4]} 37... Rg3 {[%clk 0:00:53.9]} 38. Kd2 {[%clk 0:00:05.2]}
38... Rxh3 {[%clk 0:00:52.9]} 39. Rd8 {[%clk 0:00:04.6]} 39... Ne7 {[%clk
0:00:41.1]} 40. c7 {[%clk 0:00:03.3]} 40... Rh5 {[%clk 0:00:38.3]} 41. Rd7
{[%clk 0:00:01.4]} 41... Nc8 {[%clk 0:00:36.1]} 42. Rd8 {[%clk 0:00:01.3]} 42...
Nb6 {[%clk 0:00:26.8]} 0-1

[Event "*** Titled Tuesday Blitz"]
[Site "Chess.com"]
[Date "2021.02.16"]
[Round "10"]
[White "davigator"]
[Black "awesomevishesh"]
[Result "1-0"]
[WhiteElo "2379"]
[BlackElo "2486"]
[TimeControl "180+1"]
[EndTime "11:59:27 PST"]
[Termination "davigator won on time"]

1. e4 {[%clk 0:03:00.9]} 1... c5 {[%clk 0:02:59.3]} 2. Nf3 {[%clk 0:02:59.9]}
2... d6 {[%clk 0:02:58.2]} 3. d4 {[%clk 0:02:57.9]} 3... cxd4 {[%clk 0:02:59.1]}
4. Nxd4 {[%clk 0:02:57.8]} 4... Nf6 {[%clk 0:02:59.4]} 5. Nc3 {[%clk 0:02:57.9]}
5... a6 {[%clk 0:02:59.7]} 6. Bg5 {[%clk 0:02:57.9]} 6... e6 {[%clk 0:02:59.5]}
7. f4 {[%clk 0:02:57.9]} 7... h6 {[%clk 0:02:59.2]} 8. Bh4 {[%clk 0:02:56.5]}
8... Qb6 {[%clk 0:02:59.3]} 9. a3 {[%clk 0:02:54.8]} 9... Be7 {[%clk 0:02:58.8]}
10. Bf2 {[%clk 0:02:54.7]} 10... Qc7 {[%clk 0:02:58.6]} 11. Qf3 {[%clk
0:02:54.9]} 11... b5 {[%clk 0:02:55.2]} 12. O-O-O {[%clk 0:02:54.3]} 12... Bb7
{[%clk 0:02:55]} 13. Bd3 {[%clk 0:02:54.3]} 13... Nbd7 {[%clk 0:02:52.9]} 14.
Rhe1 {[%clk 0:02:52.3]} 14... Rb8 {[%clk 0:02:48.5]} 15. g4 {[%clk 0:02:48.4]}
15... g5 {[%clk 0:02:46.1]} 16. Nb3 {[%clk 0:02:33.8]} 16... Ba8 {[%clk
0:02:36.1]} 17. h4 {[%clk 0:02:29.6]} 17... gxf4 {[%clk 0:02:35.9]} 18. Qxf4
{[%clk 0:02:29]} 18... Ne5 {[%clk 0:02:30.6]} 19. g5 {[%clk 0:02:26.2]} 19...
hxg5 {[%clk 0:02:30]} 20. hxg5 {[%clk 0:02:25.6]} 20... Nh5 {[%clk 0:02:20.4]}
21. Qe3 {[%clk 0:02:24.7]} 21... Ng4 {[%clk 0:02:15.5]} 22. Qd2 {[%clk
0:02:21.7]} 22... Nxf2 {[%clk 0:02:10.6]} 23. Qxf2 {[%clk 0:02:21.8]} 23...
Bxg5+ {[%clk 0:02:10.6]} 24. Kb1 {[%clk 0:02:22.4]} 24... Nf4 {[%clk 0:02:03.8]}
25. Qg3 {[%clk 0:02:15]} 25... Rg8 {[%clk 0:01:49.4]} 26. Rf1 {[%clk 0:02:08.9]}
26... e5 {[%clk 0:01:27.1]} 27. Qg4 {[%clk 0:01:56.8]} 27... b4 {[%clk
0:01:24.9]} 28. axb4 {[%clk 0:01:55.8]} 28... Rxb4 {[%clk 0:01:25.7]} 29. Rg1
{[%clk 0:01:43.5]} 29... a5 {[%clk 0:01:24.8]} 30. Qf5 {[%clk 0:01:39.8]} 30...
f6 {[%clk 0:01:12]} 31. Nd5 {[%clk 0:01:31.8]} 31... Bxd5 {[%clk 0:01:07]} 32.
exd5 {[%clk 0:01:31.2]} 32... a4 {[%clk 0:01:06.5]} 33. Nd2 {[%clk 0:01:23.8]}
33... a3 {[%clk 0:00:57.4]} 34. Nc4 {[%clk 0:01:06.1]} 34... Rxc4 {[%clk
0:00:49]} 35. Bxc4 {[%clk 0:01:05.2]} 35... Qxc4 {[%clk 0:00:45.4]} 36. Rg3
{[%clk 0:01:00.9]} 36... a2+ {[%clk 0:00:10]} 37. Ka1 {[%clk 0:00:56.4]} 37...
Qe2 {[%clk 0:00:08]} 38. Rh1 {[%clk 0:00:51.3]} 38... Rg7 {[%clk 0:00:02.3]} 39.
Ra3 {[%clk 0:00:28]} 39... Nxd5 {[%clk 0:00:01.4]} 40. Qe6+ {[%clk 0:00:22.7]}
1-0

[Event "*** Titled Tuesday Blitz"]
[Site "Chess.com"]
[Date "2021.02.16"]
[Round "10"]
[White "EvgenyT"]
[Black "RD4ever"]
[Result "0-1"]
[WhiteElo "2940"]
[BlackElo "2894"]
[TimeControl "180+1"]
[EndTime "11:59:28 PST"]
[Termination "RD4ever won by resignation"]

1. c4 {[%clk 0:02:38.2]} 1... e6 {[%clk 0:02:52.3]} 2. Nf3 {[%clk 0:02:37.4]}
2... d5 {[%clk 0:02:51.9]} 3. g3 {[%clk 0:02:37.8]} 3... Nf6 {[%clk 0:02:23.4]}
4. Bg2 {[%clk 0:02:36.3]} 4... c5 {[%clk 0:02:24]} 5. O-O {[%clk 0:02:34.8]}
5... Be7 {[%clk 0:02:19.8]} 6. cxd5 {[%clk 0:02:29.7]} 6... exd5 {[%clk
0:02:17.8]} 7. d4 {[%clk 0:02:29.9]} 7... Nc6 {[%clk 0:02:15.1]} 8. dxc5 {[%clk
0:02:28.5]} 8... Bxc5 {[%clk 0:02:13.5]} 9. Bg5 {[%clk 0:02:28.9]} 9... O-O
{[%clk 0:02:09]} 10. Nc3 {[%clk 0:02:25.1]} 10... d4 {[%clk 0:02:08.6]} 11. Bxf6
{[%clk 0:02:06.4]} 11... Qxf6 {[%clk 0:02:09.5]} 12. Nd5 {[%clk 0:02:06.5]}
12... Qd8 {[%clk 0:02:09.1]} 13. Nd2 {[%clk 0:02:06.2]} 13... Re8 {[%clk
0:02:06.1]} 14. Rc1 {[%clk 0:01:59.7]} 14... Bf8 {[%clk 0:02:03.8]} 15. Nf4
{[%clk 0:01:53.1]} 15... Bf5 {[%clk 0:01:41.2]} 16. a3 {[%clk 0:01:51.2]} 16...
Rc8 {[%clk 0:01:39.1]} 17. Nd3 {[%clk 0:01:47.2]} 17... Qd7 {[%clk 0:01:31.5]}
18. Re1 {[%clk 0:01:40]} 18... Bh3 {[%clk 0:01:28.1]} 19. Bxh3 {[%clk
0:01:31.8]} 19... Qxh3 {[%clk 0:01:29]} 20. Nf3 {[%clk 0:01:32.1]} 20... Qf5
{[%clk 0:01:21.2]} 21. Qb3 {[%clk 0:01:29.5]} 21... Rc7 {[%clk 0:01:10.7]} 22.
Qa4 {[%clk 0:01:08.2]} 22... Rxe2 {[%clk 0:00:50]} 23. Nxd4 {[%clk 0:00:26.9]}
23... Nxd4 {[%clk 0:00:32.8]} 24. Qxd4 {[%clk 0:00:25.2]} 24... Rd7 {[%clk
0:00:30.6]} 25. Qc4 {[%clk 0:00:14.9]} 25... Rxe1+ {[%clk 0:00:22.2]} 26. Nxe1
{[%clk 0:00:14.6]} 26... Rd2 {[%clk 0:00:23.1]} 27. Qf1 {[%clk 0:00:05.9]} 27...
Rxb2 {[%clk 0:00:21.4]} 28. Nd3 {[%clk 0:00:05.9]} 28... Rb3 {[%clk 0:00:21.3]}
29. Nf4 {[%clk 0:00:06.1]} 29... Bxa3 {[%clk 0:00:15.2]} 30. Rd1 {[%clk
0:00:05]} 30... g6 {[%clk 0:00:11.3]} 31. Qc4 {[%clk 0:00:04.6]} 31... Rb1
{[%clk 0:00:07]} 32. Rxb1 {[%clk 0:00:02.5]} 32... Qxb1+ {[%clk 0:00:07.9]} 33.
Kg2 {[%clk 0:00:03]} 33... Bf8 {[%clk 0:00:06.8]} 34. h4 {[%clk 0:00:02.4]}
34... Qf5 {[%clk 0:00:07.2]} 35. h5 {[%clk 0:00:02.2]} 35... gxh5 {[%clk
0:00:07.4]} 36. Nd5 {[%clk 0:00:02.3]} 36... a5 {[%clk 0:00:06.4]} 37. Ne3
{[%clk 0:00:01.9]} 37... Qe6 {[%clk 0:00:06.5]} 38. Qb5 {[%clk 0:00:01.9]} 38...
Qc6+ {[%clk 0:00:06.8]} 0-1

[Event "*** Titled Tuesday Blitz"]
[Site "Chess.com"]
[Date "2021.02.16"]
[Round "10"]
[White "olksuna"]
[Black "m_ezat"]
[Result "1-0"]
[WhiteElo "2681"]
[BlackElo "2485"]
[TimeControl "180+1"]
[EndTime "11:59:30 PST"]
[Termination "olksuna won by checkmate"]

1. e4 {[%clk 0:03:00.9]} 1... c6 {[%clk 0:02:08.4]} 2. Nf3 {[%clk 0:02:59.5]}
2... d5 {[%clk 0:02:08.2]} 3. Nc3 {[%clk 0:02:59.8]} 3... Bg4 {[%clk 0:02:06.6]}
4. h3 {[%clk 0:02:59.9]} 4... Bxf3 {[%clk 0:02:06.4]} 5. Qxf3 {[%clk 0:03:00.8]}
5... e6 {[%clk 0:01:50.3]} 6. d4 {[%clk 0:02:58.9]} 6... Bb4 {[%clk 0:01:47.1]}
7. exd5 {[%clk 0:02:50]} 7... cxd5 {[%clk 0:01:45.9]} 8. Bb5+ {[%clk 0:02:48]}
8... Nc6 {[%clk 0:01:45.8]} 9. O-O {[%clk 0:02:44.7]} 9... Bxc3 {[%clk
0:01:42.5]} 10. Qxc3 {[%clk 0:02:39]} 10... Ne7 {[%clk 0:01:42]} 11. Qd3 {[%clk
0:02:24.6]} 11... O-O {[%clk 0:01:40.5]} 12. c3 {[%clk 0:02:24.9]} 12... Nf5
{[%clk 0:01:33.5]} 13. Bf4 {[%clk 0:02:17.8]} 13... Nce7 {[%clk 0:01:26.3]} 14.
Ba4 {[%clk 0:02:14]} 14... Ng6 {[%clk 0:01:26.5]} 15. Bh2 {[%clk 0:02:13.1]}
15... Qg5 {[%clk 0:01:26.4]} 16. Bc2 {[%clk 0:02:01]} 16... Rfd8 {[%clk
0:00:53.5]} 17. Kh1 {[%clk 0:01:56.4]} 17... h5 {[%clk 0:00:50.1]} 18. f4 {[%clk
0:01:38.7]} 18... Qh4 {[%clk 0:00:47.7]} 19. Qf3 {[%clk 0:01:33.2]} 19... Qf6
{[%clk 0:00:40.8]} 20. g4 {[%clk 0:01:27.1]} 20... hxg4 {[%clk 0:00:38.3]} 21.
hxg4 {[%clk 0:01:27.2]} 21... Nd6 {[%clk 0:00:38.3]} 22. f5 {[%clk 0:01:23.6]}
22... Nh4 {[%clk 0:00:35.3]} 23. Qh3 {[%clk 0:01:18.1]} 23... exf5 {[%clk
0:00:24.3]} 24. gxf5 {[%clk 0:01:11.6]} 24... Ne4 {[%clk 0:00:22.5]} 25. Rf4
{[%clk 0:00:51.4]} 25... g5 {[%clk 0:00:04.5]} 26. Rff1 {[%clk 0:00:27.3]} 26...
Kg7 {[%clk 0:00:04.7]} 27. Be5 {[%clk 0:00:26.9]} 27... Rh8 {[%clk 0:00:04.7]}
28. Bxf6+ {[%clk 0:00:25.8]} 28... Kxf6 {[%clk 0:00:04.5]} 29. Kg1 {[%clk
0:00:26.2]} 29... Rh5 {[%clk 0:00:02]} 30. Bxe4 {[%clk 0:00:25.5]} 30... dxe4
{[%clk 0:00:01.5]} 31. Qg4 {[%clk 0:00:21.4]} 31... Re8 {[%clk 0:00:02]} 32.
Rae1 {[%clk 0:00:20]} 32... Rh6 {[%clk 0:00:01.9]} 33. Rxe4 {[%clk 0:00:19.4]}
33... Rxe4 {[%clk 0:00:01.5]} 34. Qxe4 {[%clk 0:00:20.3]} 34... Kg7 {[%clk
0:00:02]} 35. f6+ {[%clk 0:00:20]} 35... Rxf6 {[%clk 0:00:02.9]} 36. Rxf6 {[%clk
0:00:19.7]} 36... Kxf6 {[%clk 0:00:02.5]} 37. Qxb7 {[%clk 0:00:20.2]} 37... Kg6
{[%clk 0:00:03.4]} 38. Qxa7 {[%clk 0:00:20.5]} 38... f5 {[%clk 0:00:03.7]} 39.
d5 {[%clk 0:00:21.1]} 39... g4 {[%clk 0:00:04.2]} 40. d6 {[%clk 0:00:21.8]}
40... Nf3+ {[%clk 0:00:05]} 41. Kf2 {[%clk 0:00:21.6]} 41... Ne5 {[%clk
0:00:05.9]} 42. d7 {[%clk 0:00:20.9]} 42... Nd3+ {[%clk 0:00:06.8]} 43. Ke3
{[%clk 0:00:20.2]} 43... Ne5 {[%clk 0:00:07.7]} 44. d8=Q {[%clk 0:00:19.3]}
44... Nc4+ {[%clk 0:00:08.6]} 45. Kf4 {[%clk 0:00:18.6]} 45... Nxb2 {[%clk
0:00:09.5]} 46. Qg8+ {[%clk 0:00:18.1]} 46... Kh5 {[%clk 0:00:09.4]} 47. Qg5#
{[%clk 0:00:18.1]} 1-0

[Event "*** Titled Tuesday Blitz"]
[Site "Chess.com"]
[Date "2021.02.16"]
[Round "10"]
[White "chessdjw"]
[Black "Sergienko_Sergey"]
[Result "1-0"]
[WhiteElo "2689"]
[BlackElo "2433"]
[TimeControl "180+1"]
[EndTime "11:59:33 PST"]
[Termination "chessdjw won by resignation"]

1. e4 {[%clk 0:03:00.9]} 1... c5 {[%clk 0:02:59.2]} 2. Nf3 {[%clk 0:03:01.2]}
2... a6 {[%clk 0:02:57.9]} 3. c3 {[%clk 0:03:00.3]} 3... e6 {[%clk 0:02:56.9]}
4. d4 {[%clk 0:03:00.4]} 4... d5 {[%clk 0:02:56.2]} 5. e5 {[%clk 0:02:58.2]}
5... Bd7 {[%clk 0:02:55]} 6. Bd3 {[%clk 0:02:57.4]} 6... Nc6 {[%clk 0:02:52]} 7.
O-O {[%clk 0:02:54.4]} 7... cxd4 {[%clk 0:02:50.9]} 8. cxd4 {[%clk 0:02:55.3]}
8... Qb6 {[%clk 0:02:51.1]} 9. Be3 {[%clk 0:02:26.8]} 9... Nb4 {[%clk
0:02:37.5]} 10. Be2 {[%clk 0:02:21.6]} 10... Bb5 {[%clk 0:02:32.9]} 11. Nc3
{[%clk 0:02:21.9]} 11... Bxe2 {[%clk 0:02:31.5]} 12. Qxe2 {[%clk 0:02:22.8]}
12... Nc6 {[%clk 0:02:16.2]} 13. Rac1 {[%clk 0:02:14.6]} 13... Nge7 {[%clk
0:02:05]} 14. Na4 {[%clk 0:02:12.2]} 14... Qb5 {[%clk 0:02:02.9]} 15. Qd1 {[%clk
0:01:19.5]} 15... Nf5 {[%clk 0:01:56.9]} 16. g4 {[%clk 0:01:03.4]} 16... Nxe3
{[%clk 0:01:52.8]} 17. fxe3 {[%clk 0:01:04.3]} 17... Be7 {[%clk 0:01:50.2]} 18.
Rf2 {[%clk 0:01:04.2]} 18... O-O {[%clk 0:01:48.1]} 19. Nc5 {[%clk 0:01:04.6]}
19... Bxc5 {[%clk 0:01:41.3]} 20. Rxc5 {[%clk 0:01:04.2]} 20... Qb6 {[%clk
0:01:40.8]} 21. Qc2 {[%clk 0:00:54.6]} 21... g6 {[%clk 0:01:11.8]} 22. a3 {[%clk
0:00:44.8]} 22... Rac8 {[%clk 0:01:10.5]} 23. b4 {[%clk 0:00:42.6]} 23... Ne7
{[%clk 0:01:04.5]} 24. Ng5 {[%clk 0:00:41.2]} 24... Rxc5 {[%clk 0:00:54.4]} 25.
bxc5 {[%clk 0:00:41.1]} 25... Qa5 {[%clk 0:00:48.9]} 26. Qb3 {[%clk 0:00:41.3]}
26... Qc7 {[%clk 0:00:29.4]} 27. h4 {[%clk 0:00:39.2]} 27... Nc6 {[%clk
0:00:25.3]} 28. Rf6 {[%clk 0:00:36.6]} 28... Nxe5 {[%clk 0:00:20.6]} 29. dxe5
{[%clk 0:00:32.6]} 29... Qxe5 {[%clk 0:00:20.3]} 30. Rf3 {[%clk 0:00:28.6]}
30... d4 {[%clk 0:00:19.7]} 31. Qd3 {[%clk 0:00:18.2]} 31... h6 {[%clk
0:00:17.3]} 32. exd4 {[%clk 0:00:16.4]} 32... Qe1+ {[%clk 0:00:16.7]} 33. Rf1
{[%clk 0:00:17]} 33... Qxh4 {[%clk 0:00:16.4]} 34. Ne4 {[%clk 0:00:13.2]} 34...
Qxg4+ {[%clk 0:00:16]} 35. Kh2 {[%clk 0:00:13.3]} 35... Qh4+ {[%clk 0:00:15.7]}
36. Kg2 {[%clk 0:00:13.7]} 36... Qg4+ {[%clk 0:00:15.6]} 37. Ng3 {[%clk
0:00:13.8]} 37... h5 {[%clk 0:00:14.7]} 38. Qe4 {[%clk 0:00:13.2]} 38... Qg5
{[%clk 0:00:14]} 39. Qf4 {[%clk 0:00:13.7]} 39... Qd5+ {[%clk 0:00:13.4]} 40.
Kh2 {[%clk 0:00:14]} 40... b6 {[%clk 0:00:12.3]} 41. Ne4 {[%clk 0:00:14]} 41...
Qa2+ {[%clk 0:00:09.5]} 42. Rf2 {[%clk 0:00:13.8]} 42... Qxa3 {[%clk 0:00:09.3]}
43. Nf6+ {[%clk 0:00:14.4]} 43... Kg7 {[%clk 0:00:08.7]} 44. Nxh5+ {[%clk
0:00:14.9]} 44... Kg8 {[%clk 0:00:06.3]} 45. Qh6 {[%clk 0:00:14.4]} 1-0